bitfinex-derivatives/quotes_ETHF0:USTF0_20220106
["timestamp","ask_amount","ask_price","bid_price","bid_amount"]
[1641440777046,0.362385,3478.1,3478.0,2.24677683]
[1641440777250,0.362385,3478.1,3477.7,3.97479229]
[1641440777449,2.367175,3478.1,3477.3,2.00479]
[1641440778347,2.367175,3478.1,3476.9,3.03909559]
[1641440778548,2.367175,3478.1,3476.9,4.53909559]
[1641440778952,2.39122805,3478.0,3476.9,4.53909559]
[1641440780550,2.39122805,3478.0,3476.9,3.03909559]
[1641440781151,2.39122805,3478.0,3476.9,4.53909559]
[1641440781350,1.5,3477.8,3476.9,2.00479]
[1641440781655,1.5,3477.4,3476.2,1.43785173]
[1641440782352,1.5,3477.1,3475.6,30.4213]
[1641440782554,2.93819501,3477.3,3475.3,33.25259501]
[1641440782751,2.93819501,3477.3,3475.3,1.43819501]
[1641440783452,2.00479,3476.5,3475.7,2.00479]
[1641440783653,0.132394,3476.4,3475.7,2.00479]
[1641440786256,1.632394,3476.4,3475.7,2.00479]
[1641440787058,0.132394,3476.4,3475.7,2.00479]
[1641440788058,1.5,3476.3,3475.4,1.37662277]
[1641440788259,12.29,3476.4,3474.5,0.78256957]
[1641440788460,1.5,3476.0,3474.5,0.78256957]
[1641440789463,2.00479,3475.0,3474.5,0.78256957]
[1641440789660,0.132394,3474.9,3474.5,0.78256957]
[1641440790063,0.132394,3474.9,3474.6,1.5]
[1641440790261,2.137184,3475.0,3474.5,0.78256957]
[1641440790461,2.137184,3475.0,3474.6,1.5]
[1641440790660,4.141974,3475.3,3474.7,1.5]
[1641440790862,4.141974,3475.3,3474.6,0.132394]
[1641440790863,0.132394,3475.2,3474.6,0.132394]
[1641440791062,0.132394,3475.2,3474.5,0.78256957]
[1641440791263,0.132394,3475.2,3474.5,0.91496357]
[1641440791461,0.132394,3475.2,3474.8,2.00479]
[1641440792263,12.422394,3475.2,3474.5,0.78256957]
[1641440792467,1.5,3475.1,3474.2,2.00479]
[1641440792665,1.5,3474.9,3474.2,2.00479]
[1641440792866,0.132394,3474.8,3474.2,2.00479]
[1641440793170,1.43950757,3474.3,3473.4,5.467]
[1641440793373,1.43950757,3474.3,3473.0,1.313081]
[1641440793571,3.50479,3474.5,3473.7,2.00479]
[1641440793770,0.132394,3474.4,3473.8,0.132394]
[1641440794172,0.132394,3474.4,3473.7,2.00479]
[1641440794371,2.00479,3474.5,3473.8,0.132394]
[1641440794574,1.632394,3474.4,3473.7,2.00479]
[1641440794770,0.132394,3474.4,3473.7,2.00479]
[1641440795369,1.632394,3474.4,3473.7,2.00479]
[1641440795770,0.132394,3474.4,3473.7,2.00479]
[1641440795971,1.632394,3474.4,3473.7,2.00479]
[1641440796172,1.632394,3474.4,3473.7,9e-05]
[1641440796371,1.5,3473.9,3473.7,9e-05]
[1641440796572,0.362385,3473.8,3473.0,0.96858645]
[1641440796775,0.362385,3473.8,3473.1,0.132394]
[1641440797376,0.362385,3473.8,3473.0,0.96858645]
[1641440797578,2.00479,3473.5,3473.1,0.132394]
[1641440798780,2.00479,3473.5,3473.0,1.10098045]
[1641440799181,0.132394,3473.4,3473.0,0.96858645]
[1641440799582,2.00479,3473.5,3473.0,0.96858645]
[1641440799782,2.137184,3473.5,3473.0,0.96858645]
[1641440799981,2.137184,3473.5,3473.1,0.132394]
[1641440800479,2.00479,3473.5,3473.1,0.132394]
[1641440801181,2.00479,3473.5,3472.7,0.46387045]
[1641440801580,2.00479,3473.5,3472.8,12.29]
[1641440802280,2.00479,3473.5,3473.1,1.43909947]
[1641440802483,1.43909947,3475.1,3473.1,13.72909947]
[1641440802682,1.5,3475.5,3474.2,1.43866676]
[1641440802882,32.9056,3476.1,3474.6,1.4385074]
[1641440803081,32.9056,3476.1,3474.0,12.29]
[1641440803380,1.5,3475.6,3474.0,12.29]
[1641440803581,1.5,3475.6,3475.2,2.00479]
[1641440804182,0.8253,3476.2,3475.2,2.00479]
[1641440804785,0.8253,3476.2,3475.2,2.93343702]
[1641440805583,2.3253,3476.2,3476.1,2.00479]
[1641440805784,2.687685,3476.2,3476.1,2.00479]
[1641440805983,4.12636211,3476.2,3474.2,62.39897711]
[1641440806184,1.5,3475.4,3472.1,0.96172043]
[1641440806384,1.5,3475.4,3472.8,94.2563]
[1641440806683,2.3253,3476.2,3473.6,12.29]
[1641440807087,1.5,3475.1,3473.6,12.29]
[1641440807385,1.5,3475.1,3474.3,1.43862743]
[1641440807591,2.137184,3475.0,3474.3,1.43862743]
[1641440807787,1.5,3474.7,3474.4,0.92170763]
[1641440807986,2.00479,3475.0,3473.4,1.43899593]
[1641440807987,0.362385,3474.6,3473.4,1.43899593]
[1641440808188,1.5,3474.0,3468.8,5.87597468]
[1641440808389,1.5,3474.0,3472.8,32.6001]
[1641440808589,1.5,3474.0,3471.8,30.0946]
[1641440808790,2.00479,3475.0,3472.8,12.29]
[1641440808989,1.5,3474.0,3472.8,12.29]
[1641440809190,31.9842,3474.9,3472.8,12.29]
[1641440809391,2.00479,3475.0,3472.8,12.29]
[1641440809592,1.5,3474.7,3474.0,1.0]
[1641440809789,0.132394,3474.6,3474.0,1.0]
[1641440811494,1.5,3474.1,3474.0,1.0]
[1641440811694,3.867175,3474.1,3474.0,1.0]
[1641440812100,3.867175,3474.1,3474.0,0.0001]
[1641440812395,4.446675,3474.1,3474.0,0.0001]
[1641440814500,3.523284,3474.1,3474.0,0.0001]
[1641440815701,3.523284,3474.1,3473.3,0.85254984]
[1641440815899,2.023284,3474.1,3473.3,0.85254984]
[1641440816100,1.5,3473.6,3473.3,0.85254984]
[1641440816299,0.132394,3473.6,3473.3,0.85254984]
[1641440816504,1.234781,3474.1,3473.3,0.85254984]
[1641440816699,44.4635,3476.2,3473.5,13.29]
[1641440816900,1.5,3475.2,3473.7,1.43887791]
[1641440817300,1.43887791,3475.7,3473.7,1.43887791]
[1641440817500,1.5,3475.1,3473.7,1.43887791]
[1641440818003,2.00479,3474.8,3474.0,2.00479]
[1641440818202,0.132394,3474.7,3474.0,2.00479]
[1641440818403,2.00479,3474.8,3474.0,2.00479]
[1641440818601,2.00479,3474.8,3474.1,1.04619246]
[1641440819207,2.00479,3474.8,3474.2,1.43866262]
[1641440819402,2.00479,3475.1,3474.2,1.43866262]
[1641440819703,2.00479,3475.1,3474.1,2.04619246]
[1641440819902,2.00479,3475.1,3474.5,2.00479]
[1641440820704,2.137184,3475.1,3474.5,2.00479]
[1641440822105,1.5,3474.7,3474.5,2.00479]
[1641440822305,1.5,3474.7,3474.6,0.229991]
[1641440822512,1.576609,3474.7,3474.5,2.00479]
[1641440823107,1.5,3474.7,3474.6,0.229991]
[1641440823305,1.5,3474.7,3474.6,1.42062494]
[1641440824005,2.137184,3475.1,3474.6,1.42062494]
[1641440824207,2.137184,3475.1,3474.6,1.19063394]
[1641440824407,1.5,3474.7,3474.6,1.19063394]
[1641440824704,1.1905,3474.7,3474.6,1.42062494]
[1641440824905,1.1905,3474.7,3474.6,1.19063394]
[1641440825506,1.1905,3474.7,3474.6,1.42062494]
[1641440825906,1.267109,3474.7,3474.6,1.19063394]
[1641440826106,1.1905,3474.7,3474.6,1.19063394]
[1641440826907,1.267109,3474.7,3474.6,1.19063394]
[1641440827107,1.1905,3474.7,3474.6,1.19063394]
[1641440827307,1.1905,3474.7,3474.6,1.42062494]
[1641440828309,2.00479,3475.1,3474.6,1.42062494]
[1641440828709,1.1905,3475.0,3474.6,1.19063394]
[1641440828913,2.00479,3475.1,3474.7,1.0]
[1641440829111,0.1905,3475.0,3474.7,1.0]
[1641440829513,0.1905,3475.0,3474.8,0.229991]
[1641440829711,2.00479,3475.1,3474.8,0.229991]
[1641440830311,0.1905,3474.9,3474.7,1.0]
[1641440830917,0.322894,3474.9,3474.7,1.0]
[1641440831119,0.076609,3474.8,3474.7,1.0]
[1641440831514,0.076609,3474.8,3474.5,2.00479]
[1641440831918,0.132394,3474.7,3474.5,2.00479]
[1641440832118,0.267109,3474.6,3474.5,2.00479]
[1641440833118,0.1905,3474.6,3474.5,2.234781]
[1641440833523,0.1905,3474.6,3474.5,2.00479]
[1641440834318,0.1905,3474.6,3474.5,2.234781]
[1641440834520,0.267109,3474.6,3474.5,2.00479]
[1641440835122,0.1905,3474.6,3474.5,2.00479]
[1641440835320,0.1905,3474.6,3474.5,2.234781]
[1641440835922,0.399503,3474.6,3474.5,2.00479]
[1641440836321,0.322894,3474.6,3474.5,2.234781]
[1641440836521,0.322894,3474.6,3474.5,2.00479]
[1641440836922,0.399503,3474.6,3474.5,2.00479]
[1641440837122,0.322894,3474.6,3474.5,2.00479]
[1641440837322,0.1905,3474.6,3474.5,2.234781]
[1641440837623,0.1905,3474.6,3474.5,2.00479]
[1641440838426,0.322894,3474.6,3474.5,2.00479]
[1641440838627,0.399503,3474.6,3474.5,2.00479]
[1641440838825,2.19529,3475.1,3474.5,2.00479]
[1641440839026,0.4392,3475.6,3474.7,1.3095]
[1641440839225,30.0481,3476.2,3474.7,12.29]
[1641440839426,0.1905,3475.8,3474.7,1.3095]
[1641440839626,0.1905,3475.6,3474.5,3.31429]
[1641440839831,31.1199,3476.4,3474.5,2.00479]
[1641440840027,0.1905,3475.7,3475.2,2.00479]
[1641440840228,2.00479,3476.4,3475.2,2.00479]
[1641440840628,0.1905,3475.4,3475.2,2.00479]
[1641440841633,0.1905,3475.4,3475.2,2.234781]
[1641440842032,0.1905,3475.4,3475.2,4.239571]
[1641440842235,0.80064583,3475.6,3475.2,4.00958]
[1641440842934,0.61014583,3475.6,3475.2,5.31908]
[1641440843134,0.61014583,3475.3,3475.2,5.31908]
[1641440843334,0.61014583,3475.3,3475.2,4.239571]
[1641440844534,1.88382076,3475.7,3475.2,4.239571]
[1641440844734,1.26903844,3475.6,3475.2,4.239571]
[1641440845937,1.26903844,3475.5,3475.2,4.239571]
[1641440847036,1.26903844,3475.6,3475.2,4.239571]
[1641440847437,0.1905,3475.4,3475.2,4.239571]
[1641440847936,0.132394,3475.3,3475.2,4.00958]
[1641440848138,0.132394,3475.3,3475.2,2.00479]
[1641440848437,1.709003,3475.3,3475.2,2.00479]
[1641440849041,1.709003,3475.3,3474.8,0.96172043]
[1641440849237,1.709003,3475.3,3474.5,1.28237127]
[1641440849238,1.6905,3474.9,3474.5,1.28237127]
[1641440849439,1.6905,3474.6,3474.5,1.28237127]
[1641440849639,1.767109,3474.6,3474.1,0.97366756]
[1641440849840,0.132394,3474.5,3474.1,0.97366756]
[1641440850039,2.00479,3474.4,3474.1,0.97366756]
[1641440850239,0.1905,3474.2,3474.1,0.97366756]
[1641440850440,0.267109,3474.2,3474.1,0.97366756]
[1641440850940,0.267109,3474.2,3473.8,1.28237127]
[1641440851139,0.1905,3473.9,3473.6,2.00479]
[1641440851340,0.076609,3473.8,3473.6,2.00479]
[1641440851544,0.1905,3473.7,3473.6,2.00479]
[1641440851939,0.1905,3473.7,3473.4,0.91972902]
[1641440852438,0.1905,3473.7,3473.5,0.229991]
[1641440852639,0.267109,3473.7,3473.4,0.91972902]
[1641440852838,0.1905,3473.5,3473.4,0.91972902]
[1641440853440,0.1905,3473.6,3473.4,1.14972002]
[1641440854441,0.7703,3473.9,3473.4,1.14972002]
[1641440854642,2.137184,3474.0,3473.4,1.14972002]
[1641440855341,2.327684,3474.0,3473.4,1.14972002]
[1641440856144,2.327684,3474.0,3473.5,0.37193495]
[1641440856344,0.1905,3473.6,3473.5,0.37193495]
[1641440856546,1.83931318,3473.6,3473.5,0.37193495]
[1641440856943,0.399503,3473.6,3473.5,0.37193495]
[1641440857545,0.399503,3473.6,3473.3,1.28237127]
[1641440857746,0.1905,3473.4,3473.3,1.28237127]
[1641440857947,0.267109,3473.4,3473.1,1.28237127]
[1641440858246,0.1905,3473.3,3473.1,1.28237127]
[1641440858851,0.209003,3473.2,3473.1,1.28237127]
[1641440859448,0.209003,3473.2,3472.9,2.00479]
[1641440859748,0.1905,3473.0,3472.9,2.00479]
[1641440859948,0.399503,3473.0,3472.9,2.00479]
[1641440860149,1.899503,3473.0,3472.6,1.28237127]
[1641440860349,1.6905,3472.7,3472.6,1.28237127]
[1641440860552,1.822894,3472.7,3472.2,0.81379837]
[1641440860749,1.822894,3472.7,3472.1,1.92350876]
[1641440860750,0.1905,3472.3,3472.1,1.92350876]
[1641440860951,0.209003,3472.2,3472.1,1.31970876]
[1641440861153,1.709003,3472.2,3471.6,3.20584794]
[1641440861352,0.209003,3472.2,3472.1,1.29985315]
[1641440861554,1.899503,3472.2,3472.1,1.29985315]
[1641440862151,4.409083,3472.2,3472.1,1.29985315]
[1641440862553,5.84938466,3472.2,3472.1,1.29985315]
[1641440862955,4.409083,3472.2,3472.1,1.29985315]
[1641440863555,4.409083,3472.2,3471.7,0.81403617]
[1641440863754,4.409083,3472.2,3471.6,1.94977972]
[1641440863755,0.1905,3471.8,3471.0,3.20584794]
[1641440863957,4.75233082,3472.2,3470.8,1.03926143]
[1641440864158,2.00479,3471.3,3470.8,1.03926143]
[1641440864956,2.00479,3471.3,3470.9,0.32493724]
[1641440865958,0.1905,3471.0,3470.9,0.32493724]
[1641440866161,0.267109,3471.0,3470.9,0.32493724]
[1641440866363,0.399503,3471.0,3470.9,0.32493724]
[1641440866864,1.168603,3471.0,3470.9,0.32493724]
[1641440868362,1.168603,3471.0,3470.2,3.20584794]
[1641440868363,1.7794238,3471.0,3470.2,3.20584794]
[1641440868562,0.1905,3470.3,3470.1,0.32493724]
[1641440868761,1.3799208,3471.0,3470.2,0.229991]
[1641440868762,0.6108208,3471.0,3470.2,0.229991]
[1641440868962,0.6108208,3471.0,3470.4,1.3095]
[1641440869564,2.19529,3471.1,3470.4,1.3095]
[1641440869762,2.19529,3471.1,3470.8,0.97526237]
[1641440869964,2.19529,3471.1,3470.9,1.40508636]
[1641440870263,2.00479,3471.1,3470.9,1.40508636]
[1641440871062,2.39122805,3472.2,3470.9,1.40508636]
[1641440871264,2.39122805,3472.3,3471.0,2.41526951]
[1641440871464,1.90320299,3472.1,3471.0,2.41526951]
[1641440871662,0.1905,3471.4,3471.0,2.41526951]
[1641440871862,0.1905,3471.4,3471.0,0.97526237]
[1641440872065,0.132394,3471.5,3471.2,2.00479]
[1641440872264,2.00479,3472.0,3471.3,0.229991]
[1641440872463,0.1905,3471.4,3471.2,2.00479]
[1641440873267,0.1905,3471.4,3471.3,0.229991]
[1641440874769,1.268015,3471.6,3471.3,0.229991]
[1641440875470,0.1905,3471.4,3471.3,0.229991]
[1641440876277,1.268015,3471.6,3471.3,0.229991]
[1641440876878,1.268015,3471.7,3471.3,0.229991]
[1641440877280,0.1905,3471.6,3471.3,0.229991]
[1641440878080,1.90320299,3471.8,3471.3,0.229991]
[1641440878481,0.1905,3471.4,3471.3,0.229991]
[1641440879082,1.45722837,3471.4,3471.3,0.229991]
[1641440879282,1.53383737,3471.4,3471.2,2.00479]
[1641440879484,1.26672837,3471.4,3471.2,2.00479]
[1641440879686,0.1905,3471.3,3471.2,2.00479]
[1641440880084,0.1905,3471.3,3470.9,1.17509536]
[1641440880285,0.1905,3471.0,3470.8,0.97526237]
[1641440880486,4.00958,3470.9,3470.7,0.97526237]
[1641440880685,0.1905,3470.8,3470.7,0.97526237]
[1641440880884,0.322894,3470.8,3470.7,0.97526237]
[1641440881084,0.399503,3470.8,3470.7,0.97526237]
[1641440881287,4.20008,3470.9,3470.7,1.20525337]
[1641440881487,4.00958,3470.9,3470.7,1.83645337]
[1641440881689,4.00958,3470.9,3470.7,1.60646237]
[1641440881887,4.086189,3470.9,3470.7,1.60646237]
[1641440882088,4.00958,3470.9,3470.7,1.60646237]
[1641440882289,0.61077796,3470.8,3470.7,0.861191]
[1641440882489,0.61077796,3470.8,3470.0,0.97526237]
[1641440882688,0.1905,3470.6,3470.0,0.97526237]
[1641440882888,0.322894,3470.6,3470.0,0.97526237]
[1641440883088,0.322894,3470.6,3470.1,1.04434501]
[1641440883290,0.132394,3470.6,3470.1,1.04434501]
[1641440883890,0.1905,3470.2,3470.1,1.04434501]
[1641440884089,0.267109,3470.2,3470.1,1.04434501]
[1641440885290,0.267109,3470.2,3470.0,0.97526237]
[1641440885493,1.632394,3470.1,3464.6,0.4]
[1641440885693,0.1905,3469.3,3467.8,32.2564]
[1641440885898,0.1905,3468.8,3468.7,2.45964794]
[1641440886093,0.399503,3468.8,3468.7,2.22754794]
[1641440886392,4.409083,3468.8,3467.7,0.89152442]
[1641440886591,0.1905,3468.2,3467.7,0.89152442]
[1641440886791,0.1905,3468.2,3467.0,1.2826892]
[1641440886792,0.1905,3467.9,3467.0,1.2826892]
[1641440887192,0.1905,3467.9,3467.2,1.33101518]
[1641440887495,1.6905,3467.4,3467.0,1.2826892]
[1641440887693,0.1905,3467.1,3466.5,1.9240338]
[1641440887894,0.002,3466.5,3465.7,34.04639229]
[1641440888295,0.132394,3466.4,3465.7,3.97479229]
[1641440888497,2.00479,3465.8,3464.9,2.00479]
[1641440888795,2.00479,3465.8,3465.3,1.3095]
[1641440888994,2.00479,3465.8,3464.6,2.00479]
[1641440889395,2.00479,3465.8,3465.1,1.3095]
[1641440889595,2.00479,3465.8,3464.6,3.4474313]
[1641440889596,2.137184,3465.8,3465.3,1.3095]
[1641440889794,2.137184,3465.8,3465.1,1.3095]
[1641440890197,0.1905,3465.4,3464.7,13.68059684]
[1641440890394,0.002,3466.5,3465.3,1.3095]
[1641440890594,0.002,3466.5,3464.7,1.39059684]
[1641440890802,0.1905,3464.8,3463.7,5.467]
[1641440890999,0.6004,3466.3,3463.7,5.467]
[1641440891000,0.1905,3463.8,3463.7,5.467]
[1641440891198,1.44368266,3464.1,3463.7,5.467]
[1641440891398,4.618604,3464.7,3462.2,32.834]
[1641440891399,4.619271,3463.8,3462.2,32.834]
[1641440891597,1.5,3464.3,3461.7,4.45730049]
[1641440891800,31.0172,3465.7,3461.9,3.17479229]
[1641440891997,4.61907,3464.0,3461.9,2.70799229]
[1641440892300,4.61907,3464.0,3461.9,1.67209229]
[1641440892501,4.61907,3464.0,3461.9,0.50699229]
[1641440892696,4.61907,3464.0,3461.7,3.49429278]
[1641440892896,4.61907,3464.0,3461.7,2.81839278]
[1641440893099,2.00479,3462.0,3461.5,1.5]
[1641440893296,0.578279,3463.9,3461.7,1.01619305]
[1641440893497,4.0,3464.1,3462.1,1.5]
[1641440893698,4.0,3464.7,3462.8,1.5]
[1641440893896,0.002,3462.8,3462.3,1.5]
[1641440894098,0.002,3462.8,3461.7,1.01619305]
[1641440894099,0.002,3462.8,3462.4,0.132394]
[1641440894298,4.0,3464.7,3461.4,5.467]
[1641440894497,2.00479,3462.2,3461.4,7.47179]
[1641440894698,1.5,3465.4,3462.1,1.5]
[1641440894896,1.5,3465.4,3462.9,1.5]
[1641440895104,4.0,3465.5,3461.5,35.616173]
[1641440895298,4.0,3465.5,3463.0,0.96597259]
[1641440895499,32.64688518,3465.2,3461.5,32.4943]
[1641440895697,32.64688518,3465.2,3461.5,30.9943]
[1641440896206,4.619804,3465.1,3462.2,1.5]
[1641440896497,4.619804,3465.1,3461.6,13.41427297]
[1641440896498,2.00479,3463.6,3462.8,2.00479]
[1641440896698,2.00479,3464.0,3463.5,1.44320762]
[1641440896898,2.00479,3464.0,3463.1,1.44337426]
[1641440897097,2.00479,3464.0,3463.4,1.0719059]
[1641440897299,2.00479,3464.0,3463.5,1.632394]
[1641440897700,2.00479,3464.0,3463.5,0.132394]
[1641440898698,2.00479,3464.0,3463.5,1.632394]
[1641440899098,5.0,3467.9,3463.9,1.5]
[1641440899300,61.5452,3467.3,3464.9,1.5]
[1641440899503,61.5452,3467.3,3465.5,1.5]
[1641440899698,5.0,3467.9,3465.5,1.5]
[1641440900101,5.0,3467.9,3465.6,0.82595191]
[1641440900501,2.00479,3465.8,3465.6,0.82595191]
[1641440901301,2.00479,3465.8,3465.4,0.132394]
[1641440901498,2.00479,3465.8,3464.5,12.29]
[1641440901998,2.00479,3465.8,3464.4,1.93593191]
[1641440902200,1.5,3464.5,3462.9,5.467]
[1641440902402,2.00479,3463.3,3462.5,2.00479]
[1641440902602,1.5,3463.7,3462.6,12.422394]
[1641440902805,1.5,3464.5,3462.6,12.422394]
[1641440903301,1.5,3465.6,3462.8,12.29]
[1641440903499,1.5,3464.4,3462.8,12.29]
[1641440903699,1.5,3465.3,3462.8,12.29]
[1641440903898,12.29,3465.4,3462.8,12.29]
[1641440904099,1.5,3464.1,3462.8,12.29]
[1641440904300,44.3761,3466.3,3462.8,12.29]
[1641440904500,2.00479,3464.9,3464.0,2.00479]
[1641440904703,2.00479,3464.9,3464.0,14.29479]
[1641440905099,2.00479,3464.9,3464.0,2.00479]
[1641440905304,2.00479,3464.9,3464.1,1.39634935]
[1641440905501,1.5,3464.2,3464.1,1.39634935]
[1641440905701,1.5,3464.2,3462.1,29.7727]
[1641440905901,1.5,3463.8,3461.8,30.8785]
[1641440906100,2.00479,3464.9,3461.9,12.29]
[1641440906101,1.5,3464.6,3461.9,12.29]
[1641440906304,1.5,3464.3,3461.9,0.85099084]
[1641440906503,2.00479,3463.3,3462.5,2.00479]
[1641440906701,2.00479,3463.3,3462.6,0.132394]
[1641440907102,2.00479,3463.3,3462.5,2.00479]
[1641440907103,1.5,3463.1,3462.5,2.00479]
[1641440907302,1.5,3462.8,3462.1,2.00479]
[1641440907503,1.5,3462.8,3462.1,2.137184]
[1641440908207,1.5,3462.8,3462.2,0.89562484]
[1641440908405,1.5,3462.8,3462.2,1.02801884]
[1641440908604,1.5,3462.3,3462.2,0.89562484]
[1641440908803,1.5,3462.3,3460.7,31.2957]
[1641440908804,1.5,3462.3,3456.7,0.4]
[1641440909008,1.5,3461.2,3459.3,60.7398]
[1641440909205,14.29479,3462.6,3460.7,0.95063011]
[1641440909510,1.5,3462.2,3460.7,0.95063011]
[1641440909705,1.5,3460.8,3459.3,60.7398]
[1641440909905,1.5,3460.8,3459.3,62.18476351]
[1641440910108,1.44496351,3461.3,3459.3,31.82696351]
[1641440910307,12.29,3461.9,3459.3,31.82696351]
[1641440910308,12.29,3461.9,3460.6,5.229991]
[1641440910510,1.5,3461.6,3461.1,2.00479]
[1641440910707,2.00479,3462.0,3461.2,0.132394]
[1641440910907,12.29,3462.4,3461.8,1.4439203]
[1641440911109,2.00479,3462.6,3461.9,0.132394]
[1641440911410,2.00479,3462.6,3461.5,1.4439203]
[1641440911411,3.50479,3462.6,3461.5,1.44405375]
[1641440911608,2.00479,3462.6,3461.5,1.44405375]
[1641440911808,2.00479,3462.6,3461.9,1.44386401]
[1641440912008,1.5,3462.4,3462.0,0.132394]
[1641440912211,1.5,3462.4,3461.7,1.30964782]
[1641440912408,1.5,3462.4,3461.8,0.132394]
[1641440912609,2.00479,3461.9,3461.8,0.132394]
[1641440912910,2.00479,3462.6,3461.8,0.31230025]
[1641440913810,2.00479,3462.6,3461.9,12.29]
[1641440914109,2.00479,3462.6,3462.0,0.132394]
[1641440915912,9e-05,3462.6,3462.0,0.132394]
[1641440916311,1.5,3462.5,3461.8,2.00479]
[1641440916513,9e-05,3462.6,3461.8,2.00479]
[1641440916710,9e-05,3462.6,3461.9,0.132394]
[1641440917313,2.00479,3463.0,3461.9,12.422394]
[1641440917914,2.00479,3463.0,3462.5,1.44348677]
[1641440918112,1.5,3464.0,3462.6,12.422394]
[1641440918316,12.29,3465.8,3462.6,13.14390447]
[1641440918514,2.00479,3464.9,3464.1,2.00479]
[1641440918717,0.132394,3464.8,3464.1,2.00479]
[1641440918914,2.00479,3464.9,3464.2,0.132394]
[1641440919117,2.00479,3464.9,3464.2,12.422394]
[1641440919314,0.132394,3464.8,3464.2,2.09790052]
[1641440919714,1.5,3464.7,3464.2,1.96550652]
[1641440919918,0.132394,3464.6,3464.2,1.96550652]
[1641440920117,1.5,3464.3,3464.2,1.96550652]
[1641440920317,1.550084,3464.3,3464.2,1.96550652]
[1641440920517,1.682478,3464.3,3464.2,1.96550652]
[1641440921321,1.682478,3464.3,3463.7,2.00479]
[1641440921322,1.682478,3464.3,3463.7,0.97508652]
[1641440921718,0.682478,3464.3,3463.7,0.97508652]
[1641440921919,0.682478,3464.3,3463.7,1.72351781]
[1641440922121,0.182478,3464.3,3463.7,1.72351781]
[1641440923220,0.5,3463.9,3463.7,0.74843129]
[1641440923424,0.182478,3463.8,3463.7,0.74843129]
[1641440925522,0.182478,3463.8,3463.3,2.00479]
[1641440925721,0.132394,3463.8,3463.3,2.00479]
[1641440925925,2.00479,3463.9,3463.3,2.00479]
[1641440926124,2.00479,3463.9,3463.3,14.29479]
[1641440926423,0.5,3465.9,3463.9,12.29]
[1641440926624,0.5,3465.9,3464.9,2.00479]
[1641440926625,2.00479,3465.7,3464.9,2.00479]
[1641440926824,0.132394,3465.6,3464.9,2.00479]
[1641440927825,2.00479,3465.7,3464.9,2.137184]
[1641440928025,2.00479,3465.7,3465.0,0.87875683]
[1641440928230,2.00479,3465.7,3465.0,2.32120253]
[1641440928434,30.7867,3466.8,3465.1,12.422394]
[1641440928627,30.3482,3467.0,3466.0,2.00479]
[1641440928628,0.5,3467.0,3466.0,2.00479]
[1641440929027,2.00479,3467.2,3466.0,2.00479]
[1641440929429,2.00479,3467.2,3466.0,0.04654673]
[1641440929828,2.00479,3467.2,3466.1,0.8260603]
[1641440931037,9.79479,3467.3,3466.1,0.8260603]
[1641440931230,2.1004,3467.4,3466.1,0.8260603]
[1641440931432,1.5,3467.2,3466.1,0.8260603]
[1641440931631,0.6004,3467.4,3466.1,0.8260603]
[1641440931830,1.44250812,3466.8,3466.1,0.8260603]
[1641440932033,1.5,3466.9,3466.1,0.8260603]
[1641440932034,0.132394,3466.7,3466.1,0.8260603]
[1641440932434,0.132394,3466.7,3465.7,1.0]
[1641440932634,2.00479,3466.2,3465.7,1.0]
[1641440932833,1.5,3467.9,3465.8,0.132394]
[1641440933234,1.44232711,3467.3,3465.8,0.132394]
[1641440933435,0.6004,3467.4,3465.8,0.132394]
[1641440934036,0.6004,3467.4,3465.9,1.12449767]
[1641440934641,12.29,3468.3,3465.9,1.12449767]
[1641440934642,2.00479,3466.4,3465.9,1.12449767]
[1641440934837,2.00479,3466.4,3466.0,0.132394]
[1641440935642,2.00479,3466.4,3465.7,13.02461866]
[1641440935939,2.00479,3466.4,3465.7,14.46677728]
[1641440936140,2.00479,3466.4,3465.7,0.73461866]
[1641440936338,0.132394,3466.3,3465.7,0.73461866]
[1641440936739,1.137184,3466.4,3465.8,0.132394]
[1641440936938,1.137184,3466.4,3465.9,1.38053903]
[1641440937441,1.137184,3466.4,3465.9,1.51293303]
[1641440938340,1.269578,3466.4,3465.9,1.51293303]
[1641440938539,1.137184,3466.4,3465.9,1.51293303]
[1641440938744,1.137184,3466.4,3465.9,13.80293303]
[1641440938945,1.137184,3466.4,3465.9,1.51293303]
[1641440939142,2.00479,3466.7,3465.9,1.51293303]
[1641440939346,0.132394,3466.6,3465.9,1.38053903]
[1641440939544,0.132394,3466.6,3465.7,0.73461866]
[1641440939747,1.44272664,3466.3,3465.7,0.73461866]
[1641440939945,0.132394,3466.2,3465.7,0.73461866]
[1641440940146,0.892094,3466.2,3465.7,0.73461866]
[1641440940546,2.00479,3466.0,3465.7,0.73461866]
[1641440940748,0.132394,3465.9,3465.8,0.229991]
[1641440941046,0.132394,3465.9,3465.7,0.73461866]
[1641440941249,2.00479,3466.0,3465.7,0.73461866]
[1641440941551,0.050084,3465.9,3465.7,0.73461866]
[1641440941748,2.00479,3466.7,3465.8,0.132394]
[1641440941946,1.5,3468.1,3465.8,0.132394]
[1641440941947,1.5,3468.5,3465.8,0.132394]
[1641440942149,1.44196315,3468.1,3466.2,1.44196315]
[1641440942349,1.21814671,3468.2,3466.2,13.09385145]
[1641440942552,2.00479,3467.4,3466.6,2.00479]
[1641440942749,2.00479,3467.4,3466.7,0.132394]
[1641440943451,2.00479,3467.8,3466.7,0.132394]
[1641440943855,2.00479,3467.8,3466.7,12.422394]
[1641440944353,2.00479,3467.8,3466.8,1.44168666]
[1641440944653,2.00479,3467.8,3467.2,2.00479]
[1641440944853,2.137184,3467.8,3467.2,0.132394]
[1641440945056,2.137184,3467.8,3465.2,34.2225]